fUSD/lending_fUSD_20250320
["ID","MTS","AMOUNT","RATE_DAILY","PERIOD"]
[356465556,1742493047124,-500000.0,0.00053,120]
[356465557,1742493047133,-387.422034,0.00053,120]
[356465559,1742493047145,-387.422034,0.00053,120]
[356465561,1742493047154,-151.0,0.00053,120]
[356465563,1742493047163,-172.816365,0.00053,120]
[356465565,1742493047172,-151.0,0.00053,120]
[356465567,1742493047182,-626.58,0.00053108,120]
[356465569,1742493047191,-915.73,0.00053109,120]
[356465571,1742493047200,-500.0,0.00053109,120]
[356465573,1742493047209,-715.32,0.00053109,7]
[356465575,1742493047219,-500.0,0.00053109,120]
[356465577,1742493047228,-1572.28,0.00053109,120]
[356465579,1742493047237,-500.59,0.00053109,120]
[356465581,1742493047246,-828.35,0.00053109,120]
[356465583,1742493047256,-882.57,0.00053109,120]
[356465585,1742493047265,-579.11,0.00053109,120]
[356465587,1742493047275,-1250.0,0.00053109,120]
[356465589,1742493047285,-749.43,0.00053109,120]
[356465591,1742493047295,-641.58,0.00053109,120]
[356465593,1742493047304,-1000.0,0.00053109,120]
[356465595,1742493047313,-1600.66,0.00053109,120]
[356465597,1742493047323,-1598.9,0.00053109,120]
[356465599,1742493047332,-800.0,0.00053335,120]
[356465601,1742493047341,-626.58,0.00053382,120]
[356465603,1742493047351,-915.73,0.00053383,120]
[356465605,1742493047360,-500.0,0.00053383,120]
[356465607,1742493047369,-715.32,0.00053383,7]
[356465609,1742493047378,-500.0,0.00053383,120]
[356465611,1742493047387,-1572.28,0.00053383,120]
[356465613,1742493047397,-500.59,0.00053383,120]
[356465615,1742493047406,-828.35,0.00053383,120]
[356465617,1742493047416,-882.57,0.00053383,120]
[356465619,1742493047425,-579.11,0.00053383,120]
[356465621,1742493047435,-1250.0,0.00053383,120]
[356465623,1742493047444,-749.43,0.00053383,120]
[356465625,1742493047453,-641.58,0.00053383,120]
[356465627,1742493047462,-1000.0,0.00053383,120]
[356465629,1742493047471,-1600.66,0.00053383,120]
[356465631,1742493047481,-1598.9,0.00053383,120]
[356465633,1742493047491,-1000.0,0.00053645,120]
[356465635,1742493047500,-626.58,0.00053656,120]
[356465637,1742493047509,-915.73,0.00053657,120]
[356465639,1742493047519,-500.0,0.00053657,120]
[356465641,1742493047531,-715.32,0.00053657,7]
[356465643,1742493047542,-500.0,0.00053657,120]
[356465645,1742493047551,-1572.28,0.00053657,120]
[356465647,1742493047559,-500.59,0.00053657,120]
[356465649,1742493047570,-828.35,0.00053657,120]
[356465651,1742493047579,-882.57,0.00053657,120]
[356465653,1742493047588,-579.11,0.00053657,120]
[356465654,1742493047598,-1250.0,0.00053657,120]
[356465656,1742493047607,-749.43,0.00053657,120]
[356465658,1742493047616,-641.58,0.00053657,120]
[356465660,1742493047625,-1000.0,0.00053657,120]
[356465662,1742493047635,-1600.66,0.00053657,120]
[356465664,1742493047644,-1598.9,0.00053657,120]
[356465666,1742493047653,-162.87,0.0005368,120]
[356465668,1742493047663,-800.0,0.00053883,120]
[356465670,1742493047672,-626.58,0.0005393,120]
[356465672,1742493047682,-915.73,0.00053931,120]
[356465673,1742493047691,-500.0,0.00053931,120]
[356465674,1742493047702,-715.32,0.00053931,7]
[356465675,1742493047711,-500.0,0.00053931,120]
[356465676,1742493047721,-1572.28,0.00053931,120]
[356465677,1742493047731,-500.59,0.00053931,120]
[356465678,1742493047740,-828.35,0.00053931,120]
[356465679,1742493047749,-882.57,0.00053931,120]
[356465680,1742493047764,-579.11,0.00053931,120]
[356465681,1742493047774,-1250.0,0.00053931,120]
[356465682,1742493047783,-749.43,0.00053931,120]
[356465683,1742493047792,-641.58,0.00053931,120]
[356465685,1742493047802,-1000.0,0.00053931,120]
[356465686,1742493047811,-1600.66,0.00053931,120]
[356465687,1742493047820,-1598.9,0.00053931,120]
[356465688,1742493047831,-7996.90883401,0.00054,18]
[356465689,1742493047841,-51654.11523743,0.00054,30]
[356465690,1742493047851,-500.0,0.00054192,2]
[356465691,1742493047862,-626.58,0.00054204,120]
[356465692,1742493047872,-915.73,0.00054205,120]
[356465693,1742493047882,-500.0,0.00054205,120]
[356465694,1742493047893,-715.32,0.00054205,7]
[356465695,1742493047902,-503.76652624,0.00054205,120]
[356465696,1742493047912,-1572.28,0.00054205,120]
[356465697,1742493047922,-500.59,0.00054205,120]
[356465698,1742493047931,-828.35,0.00054205,120]
[356465699,1742493047940,-882.57,0.00054205,120]
[356465700,1742493047950,-579.11,0.00054205,120]
[356465701,1742493047959,-1250.0,0.00054205,120]
[356465702,1742493047969,-749.43,0.00054205,120]
[356465703,1742493047978,-641.58,0.00054205,120]
[356465704,1742493047988,-1000.0,0.00054205,120]
[356465705,1742493047997,-1600.66,0.00054205,120]
[356465706,1742493048007,-1598.9,0.00054205,120]
[356465707,1742493048016,-800.0,0.00054431,120]
[356465708,1742493048025,-626.58,0.00054478,120]
[356465709,1742493048034,-915.73,0.00054479,120]
[356465710,1742493048043,-464.49638558,0.00054479,120]
[356465711,1742493048052,-715.32,0.00054479,7]
[356465712,1742493048061,-1572.28,0.00054479,120]
[356465713,1742493048071,-500.59,0.00054479,120]
[356465714,1742493048080,-828.35,0.00054479,120]
[356465715,1742493048089,-882.57,0.00054479,120]
[356465716,1742493048099,-579.11,0.00054479,120]
[356465717,1742493048108,-1250.0,0.00054479,120]
[356465718,1742493048118,-749.43,0.00054479,120]
[356465719,1742493048127,-641.58,0.00054479,120]
[356465720,1742493048136,-1000.0,0.00054479,120]
[356465721,1742493048145,-1600.66,0.00054479,120]
[356465722,1742493048155,-1598.9,0.00054479,120]
[356465723,1742493048164,-626.58,0.00054752,120]
[356465724,1742493048173,-915.73,0.00054753,120]
[356465725,1742493048182,-715.32,0.00054753,7]
[356465726,1742493048191,-1572.28,0.00054753,120]
[356465727,1742493048201,-500.59,0.00054753,120]
[356465728,1742493048210,-828.35,0.00054753,120]
[356465729,1742493048219,-882.57,0.00054753,120]
[356465730,1742493048228,-579.11,0.00054753,120]
[356465731,1742493048238,-1250.0,0.00054753,120]
[356465732,1742493048247,-749.43,0.00054753,120]
[356465733,1742493048256,-641.58,0.00054753,120]
[356465734,1742493048265,-1000.0,0.00054753,120]
[356465735,1742493048274,-1600.66,0.00054753,120]
[356465736,1742493048284,-1598.9,0.00054753,120]
[356465737,1742493048293,-800.0,0.00054979,120]
[356465738,1742493048303,-50000.0,0.00055,55]
[356465739,1742493048312,-500000.0,0.00055,120]
[356465740,1742493048321,-257078.37487404,0.00055,120]
[356465741,1742493048334,-912.64454596,0.00055,120]
[356465742,1742493048346,-1446.27983838,0.00055,120]
[356465743,1742493048361,-150.0,0.0005022,2]
[356465744,1742493048370,-2279.16011,0.00055,120]
[356465745,1742493048380,-2578.72061342,0.00055,120]
[356465746,1742493048391,-123368.14130503,0.00055,120]
[356465747,1742493048402,-53326.9499955,0.00055,120]
[356465748,1742493048414,-59009.72871767,0.00055,120]
[356465749,1742493048424,-387.422034,0.00055,120]
[356465750,1742493048433,-387.422034,0.00055,120]
[356465751,1742493048443,-387.422034,0.00055,120]
[356465752,1742493048453,-387.422034,0.00055,120]
[356465753,1742493048462,-151.0,0.00055,120]
[356465754,1742493048471,-151.0,0.00055,120]
[356465755,1742493048480,-151.0,0.00055,120]
[356465756,1742493048489,-151.0,0.00055,120]
[356465757,1742493048499,-626.58,0.00055026,120]
[356465758,1742493048508,-915.73,0.00055027,120]
[356465759,1742493048546,-715.32,0.00055027,7]
[356465760,1742493048556,-1572.28,0.00055027,120]
[356465761,1742493048567,-500.59,0.00055027,120]
[356465762,1742493048576,-828.35,0.00055027,120]
[356465763,1742493048584,-882.57,0.00055027,120]
[356465764,1742493048595,-579.11,0.00055027,120]
[356465765,1742493048604,-1250.0,0.00055027,120]
[356465766,1742493048614,-749.43,0.00055027,120]
[356465767,1742493048623,-641.58,0.00055027,120]
[356465768,1742493048632,-1000.0,0.00055027,120]
[356465769,1742493048641,-1600.66,0.00055027,120]
[356465770,1742493048649,-1598.9,0.00055027,120]
[356465771,1742493048659,-432.7917195,0.00055055,2]
[356465772,1742493048667,-232.7,0.00055171,2]
[356465773,1742493048677,-626.59085205,0.000553,120]
[356465774,1742493048686,-915.77306405,0.00055301,120]
[356465775,1742493048695,-715.42574597,0.00055301,7]
[356465776,1742493048704,-1572.28,0.00055301,120]
[356465777,1742493048712,-500.70778444,0.00055301,120]
[356465778,1742493048722,-828.46904947,0.00055301,120]
[356465779,1742493048731,-882.61162274,0.00055301,120]
[356465780,1742493048740,-579.23493312,0.00055301,120]
[356465781,1742493048749,-1250.0,0.00055301,120]
[356465782,1742493048758,-749.57551164,0.00055301,120]
[356465783,1742493048767,-641.64806857,0.00055301,120]
[356465784,1742493048776,-1000.0,0.00055301,120]
[356465785,1742493048785,-1600.69588743,0.00055301,120]
[356465786,1742493048794,-1598.91952603,0.00055301,120]
[356465787,1742493048803,-204.09970125,0.00055329,13]
[356465788,1742493048812,-800.0,0.00055527,120]
[356465789,1742493048821,-56213.76224453,0.00056,120]
[356465790,1742493048833,-616.76315662,0.00056,120]
[356465791,1742493048845,-376.87925389,0.00056,120]
[356465792,1742493048857,-3277.94093333,0.00056,120]
[356465793,1742493048868,-2325.655661,0.00056,120]
[356465794,1742493048879,-76723.62696477,0.00056,120]
[356465795,1742493178111,-705.4721,0.000488,2]
[356465796,1742493178132,-1302.8558,0.00048899,2]
[356465797,1742493178153,-217.77360995,0.00049399,2]
[356465798,1742493178174,-500.0,0.00049499,120]
[356465799,1742493178197,-500.0,0.00049499,120]
[356465800,1742493178218,-500.0,0.00049499,120]
[356465801,1742493178240,-500.0,0.00049499,120]
[356465802,1742493178261,-282.71409664,0.00049499,120]
[356465803,1742493178283,-500.0,0.00049499,120]
[356465804,1742493178305,-500.0,0.00049499,120]
[356465805,1742493178326,-600000.0,0.000495,120]
[356465806,1742493178346,-300.0,0.00049899,5]
[356465807,1742493178367,-88888.0,0.000499,120]
[356465808,1742493178389,-204.09970125,0.000499,11]
[356465809,1742493178411,-777869.08469216,0.0005,120]
[356465815,1742494040737,-250.89,0.00046989,2]
[356465816,1742494040758,-805.88,0.00048668,2]
[356465817,1742494040780,-150.0,0.00048765,7]
[356465818,1742494040803,-10882.23,0.0004878,2]
[356465819,1742494072563,-13017.77,0.0004878,2]
[356465820,1742494072586,-204.09970125,0.000489,11]
[356465821,1742494072609,-500.0,0.00048998,120]
[356465822,1742494072630,-500.0,0.00048998,7]
[356465823,1742494072651,-500.0,0.00048998,120]
[356465824,1742494072672,-500.0,0.00048998,120]
[356465825,1742494072693,-526.94,0.00048998,120]
[356465826,1742494072714,-500.0,0.00048998,120]
[356465827,1742494072735,-500.0,0.00048999,120]
[356465828,1742494072756,-500.0,0.00048999,120]
[356465829,1742494072777,-500.0,0.00048999,120]
[356465830,1742494072798,-500.0,0.00048999,120]
[356465831,1742494072820,-500.0,0.00048999,120]
[356465832,1742494072844,-160.44,0.00049127,2]
[356465833,1742494072865,-250.89,0.00049253,2]
[356465834,1742494073007,-500.0,0.00049272,120]
[356465835,1742494073032,-500.0,0.00049272,7]
[356465836,1742494073053,-500.0,0.00049272,120]
[356465837,1742494073073,-500.0,0.00049272,120]
[356465838,1742494073094,-526.94,0.00049272,120]
[356465839,1742494073115,-500.0,0.00049272,120]
[356465840,1742494073134,-500.0,0.00049273,120]
[356465841,1742494073155,-500.0,0.00049273,120]
[356465842,1742494073175,-500.0,0.00049273,120]
[356465843,1742494073196,-500.0,0.00049273,120]
[356465844,1742494073215,-155.4832,0.000493,2]
[356465845,1742494073236,-951.655,0.00049399,86]
[356465846,1742494073257,-6232.78209875,0.000494,2]
[356465847,1742494109269,-500.0,0.00048998,120]
[356465848,1742494109291,-500.0,0.00049272,120]
[356465849,1742494109311,-198.47700054,0.000493,2]
[356465850,1742494109332,-550.0,0.00049399,5]
[356465851,1742494109353,-7518.41360125,0.000494,2]
[356465852,1742494109377,-11195.90939821,0.000494,2]
[356465876,1742494232032,-250.0,0.00049244,120]
[356465877,1742494232042,-1000.0,0.00049273,2]
[356465878,1742494232052,-3562.17000179,0.000494,2]
[356465879,1742494232062,-20254.84219185,0.000494,2]
[356465880,1742494232073,-2113.28286315,0.000494,2]
[356465881,1742494232137,-774.34181465,0.000494,2]
[356465882,1742494232245,-10851.96597556,0.000494,2]
[356465883,1742494232258,-4860.65215151,0.000494,2]
[356465884,1742494232268,-1043.30060328,0.000494,2]
[356465885,1742494232277,-800.0,0.00049498,120]
[356465886,1742494232286,-500.0,0.00049546,120]
[356465887,1742494232295,-500.0,0.00049546,7]
[356465888,1742494232304,-500.0,0.00049546,120]
[356465889,1742494232312,-500.0,0.00049546,120]
[356465890,1742494232321,-526.94,0.00049546,120]
[356465891,1742494232330,-500.0,0.00049546,120]
[356465892,1742494232338,-500.0,0.00049546,120]
[356465893,1742494232347,-500.0,0.00049547,120]
[356465894,1742494232356,-500.0,0.00049547,120]
[356465895,1742494232365,-500.0,0.00049547,120]
[356465896,1742494232374,-162.87,0.00049581,120]
[356465897,1742494232383,-88.55417819,0.0004982,120]
[356465909,1742494237929,-411.44582181,0.0004982,120]
[356465910,1742494237939,-500.0,0.0004982,7]
[356465911,1742494237948,-500.0,0.0004982,120]
[356465912,1742494237957,-500.0,0.0004982,120]
[356465913,1742494237966,-526.94,0.0004982,120]
[356465914,1742494237979,-500.0,0.0004982,120]
[356465915,1742494237989,-500.0,0.00049821,120]
[356465916,1742494237999,-500.0,0.00049821,120]
[356465917,1742494238009,-500.0,0.00049821,120]
[356465918,1742494238018,-518.5498,0.000499,2]
[356465919,1742494238027,-5897.271,0.000499,2]
[356465920,1742494238036,-345.9278,0.000499,2]
[356465921,1742494238045,-204.09970125,0.000499,11]
[356465922,1742494238055,-397.1087,0.000499,2]
[356465923,1742494238064,-1044.70480143,0.00049946,80]
[356465924,1742494238073,-500.0,0.00049999,120]
[356465925,1742494238083,-500.0,0.00049999,120]
[356465926,1742494238092,-500.0,0.00049999,120]
[356465927,1742494238101,-500.0,0.00049999,120]
[356465928,1742494238111,-500.0,0.00049999,120]
[356465929,1742494238121,-420.51459615,0.00049999,120]
[356465930,1742494238129,-500.0,0.00049999,120]
[356465931,1742494238139,-733.63,0.00049999,120]
[356465932,1742494238148,-732.82,0.00049999,120]
[356465933,1742494238157,-37943.75074419,0.0005,120]
[356465934,1742494238168,-103391.06664955,0.0005,120]
[356465935,1742494238179,-902.66,0.0005,120]
[356465936,1742494238190,-1141.60691107,0.0005,120]
[356465937,1742494238200,-494.369955,0.0005,120]
[356465938,1742494238211,-16180.18862439,0.0005,120]
[356465939,1742494238222,-632.10865498,0.0005,120]
[356465941,1742494240229,-1423.9569358,0.0005,120]
[356465942,1742494240386,-6366.61027876,0.0005,120]
[356465943,1742494240440,-22061.01652916,0.0005,120]
[356465978,1742494243130,-925.69552938,0.0005,120]
[356465979,1742494243263,-509.50571749,0.0005,120]
[356465991,1742494246536,-1.42222503,0.0005,120]
[356465992,1742494246547,-17475.68498501,0.0005,120]
[356465993,1742494246563,-12681.27156803,0.0005,120]
[356465994,1742494246572,-800.0,0.00050046,120]
[356465995,1742494246582,-3346.49682565,0.00050085,4]
[356465996,1742494246591,-500.0,0.00050094,120]
[356465997,1742494246600,-500.0,0.00050094,7]
[356465998,1742494246609,-503.76652624,0.00050094,120]
[356465999,1742494246619,-500.0,0.00050094,120]
[356466000,1742494246628,-526.94,0.00050094,120]
[356466001,1742494246637,-500.0,0.00050094,120]
[356466002,1742494246646,-500.0,0.00050095,120]
[356466003,1742494246656,-500.0,0.00050095,120]
[356466004,1742494246665,-453.33476421,0.00050095,120]
[356466006,1742494246674,-937.36,0.00050179,2]
[356466008,1742494246683,-172.08,0.00050207,2]
[356466010,1742494246694,-3346.49682565,0.00050263,4]
[356466012,1742494246703,-500.0,0.00050272,120]
[356466013,1742494246712,-500.0,0.00050272,120]
[356466014,1742494246722,-500.0,0.00050272,120]
[356466015,1742494246731,-500.0,0.00050272,120]
[356466016,1742494246741,-561.42161574,0.00050272,120]
[356466017,1742494246751,-500.0,0.00050272,120]
[356466018,1742494246760,-500.0,0.00050273,120]
[356466019,1742494246770,-500.0,0.00050273,120]
[356466020,1742494246781,-500.0,0.00050273,120]
[356466021,1742494246791,-500.0,0.00050273,120]
[356466022,1742494246801,-500.0,0.00050273,120]
[356466023,1742494246811,-500.0,0.00050273,120]
[356466024,1742494246823,-733.63,0.00050273,120]
[356466025,1742494246832,-732.82,0.00050273,120]
[356466026,1742494246842,-3346.49682565,0.00050359,4]
[356466027,1742494246851,-500.0,0.00050368,120]
[356466028,1742494246860,-500.0,0.00050368,7]
[356466029,1742494246870,-500.0,0.00050368,120]
[356466030,1742494246879,-526.94,0.00050368,120]
[356466031,1742494246890,-500.0,0.00050368,120]
[356466032,1742494246902,-500.0,0.00050369,120]
[356466033,1742494246912,-500.0,0.00050369,120]
[356466034,1742494246921,-3346.49682565,0.00050537,4]
[356466035,1742494246931,-500.0,0.00050547,120]
[356466036,1742494246941,-500.0,0.00050547,120]
[356466037,1742494246951,-500.0,0.00050547,120]
[356466038,1742494246961,-500.0,0.00050547,120]
[356466039,1742494246971,-500.0,0.00050547,120]
[356466040,1742494246980,-500.0,0.00050547,120]
[356466041,1742494246989,-733.63,0.00050547,120]
[356466042,1742494246999,-732.82,0.00050547,120]
[356466043,1742494247009,-800.0,0.00050594,120]
[356466044,1742494247019,-3346.49682565,0.00050632,4]
[356466045,1742494247028,-500.0,0.00050642,120]
[356466046,1742494247037,-500.0,0.00050642,7]
[356466047,1742494247046,-500.0,0.00050642,120]
[356466048,1742494247055,-526.94,0.00050642,120]
[356466049,1742494247064,-500.0,0.00050642,120]
[356466050,1742494247074,-500.0,0.00050643,120]
[356466051,1742494247083,-504.13,0.00050643,120]
[356466052,1742494247093,-3346.49682565,0.00050811,4]
[356466053,1742494247103,-500.0,0.00050821,120]
[356466054,1742494247112,-500.0,0.00050821,120]
[356466055,1742494247123,-500.0,0.00050821,120]
[356466056,1742494247132,-500.0,0.00050821,120]
[356466057,1742494247141,-500.0,0.00050821,120]
[356466058,1742494247151,-500.0,0.00050821,120]
[356466059,1742494247160,-733.63,0.00050821,120]
[356466060,1742494247169,-732.82,0.00050821,120]
[356466061,1742494247179,-3346.49682565,0.00050906,4]
[356466062,1742494247189,-500.0,0.00050916,120]
[356466063,1742494247198,-500.0,0.00050916,7]
[356466064,1742494247207,-500.0,0.00050916,120]
[356466065,1742494247217,-526.94,0.00050916,120]
[356466066,1742494247227,-500.0,0.00050916,120]
[356466067,1742494247236,-500.0,0.00050917,120]
[356466068,1742494247246,-3346.49682565,0.00051085,4]
[356466069,1742494247256,-500.0,0.00051095,120]
[356466070,1742494247266,-500.0,0.00051095,120]
[356466071,1742494247275,-500.0,0.00051095,120]
[356466072,1742494247285,-500.0,0.00051095,120]
[356466073,1742494247294,-500.0,0.00051095,120]
[356466074,1742494247303,-500.0,0.00051095,120]
[356466075,1742494247312,-733.63,0.00051095,120]
[356466076,1742494247322,-732.82,0.00051095,120]
[356466077,1742494247331,-3346.49682565,0.00051132,4]
[356466078,1742494247340,-800.0,0.00051142,120]
[356466079,1742494247350,-500.0,0.0005119,120]
[356466080,1742494247359,-500.0,0.0005119,7]
[356466081,1742494247369,-500.0,0.0005119,120]
[356466082,1742494247378,-526.94,0.0005119,120]
[356466083,1742494247387,-500.0,0.0005119,120]
[356466084,1742494247397,-500.0,0.00051191,120]
[356466085,1742494247407,-3346.49682565,0.00051359,4]
[356466086,1742494247416,-500.0,0.00051369,120]
[356466087,1742494247427,-464.49638558,0.00051369,120]
[356466088,1742494247436,-500.0,0.00051369,120]
[356466089,1742494247445,-500.0,0.00051369,120]
[356466090,1742494247455,-500.0,0.00051369,120]
[356466091,1742494247464,-500.0,0.00051369,120]
[356466092,1742494247474,-733.63,0.00051369,120]
[356466093,1742494247483,-732.82,0.00051369,120]
[356466094,1742494247493,-3346.49682565,0.00051454,4]
[356466095,1742494247502,-500.0,0.00051464,120]
[356466096,1742494247511,-507.24,0.00051464,7]
[356466097,1742494247521,-500.0,0.00051464,120]
[356466098,1742494247531,-526.94,0.00051464,120]
[356466099,1742494247540,-500.0,0.00051464,120]
[356466100,1742494247550,-500.0,0.00051465,120]
[356466101,1742494247560,-250.89,0.00051517,2]
[356466102,1742494247570,-3346.49682565,0.00051633,4]
[356466103,1742494247580,-500.0,0.00051643,120]
[356466104,1742494247589,-500.0,0.00051643,120]
[356466105,1742494247599,-500.0,0.00051643,120]
[356466106,1742494247608,-500.0,0.00051643,120]
[356466107,1742494247617,-500.0,0.00051643,120]
[356466108,1742494247626,-733.63,0.00051643,120]
[356466109,1742494247636,-732.82,0.00051643,120]
[356466110,1742494247647,-3346.49682565,0.0005168,4]
[356466111,1742494247656,-800.0,0.0005169,120]
[356466112,1742494247666,-500.0,0.00051738,120]
[356466113,1742494247677,-500.0,0.00051738,120]
[356466114,1742494247686,-526.94,0.00051738,120]
[356466115,1742494247696,-500.0,0.00051738,120]
[356466116,1742494247705,-500.0,0.00051739,120]
[356466117,1742494247715,-3346.49682565,0.00051907,4]
[356466118,1742494247724,-500.0,0.00051917,120]
[356466119,1742494247734,-553.77,0.00051917,120]
[356466120,1742494247743,-500.0,0.00051917,120]
[356466121,1742494247753,-500.0,0.00051917,120]
[356466122,1742494247762,-500.0,0.00051917,120]
[356466123,1742494247772,-733.63,0.00051917,120]
[356466124,1742494247782,-732.82,0.00051917,120]
[356466125,1742494247791,-1152.72933806,0.00052002,4]
[356466188,1742494593273,188.02,0.000335,31]
[356466191,1742494593324,188.02,0.000335,31]
[356466195,1742494593390,188.02,0.000335,31]
[356466198,1742494593443,188.02,0.000335,31]
[356466202,1742494593508,188.02,0.000335,31]
[356466205,1742494593565,188.02,0.000335,31]
[356466209,1742494593681,188.02,0.000335,31]
[356466210,1742494593750,188.02,0.000335,31]
[356466211,1742494593811,188.02,0.000335,31]
[356466212,1742494593871,188.02,0.000335,31]
[356466215,1742494593955,188.02,0.000335,31]
[356466217,1742494593990,188.02,0.000378,31]
[356466221,1742494594055,188.02,0.000378,31]
[356466225,1742494594138,188.02,0.000335,31]
[356466228,1742494594167,188.02,0.000378,31]
[356466231,1742494594222,188.02,0.000378,31]
[356466235,1742494594292,188.02,0.000378,31]
[356466238,1742494594349,188.02,0.000378,31]
[356466241,1742494594403,188.02,0.000378,31]
[356466245,1742494594460,188.02,0.000378,31]
[356466249,1742494594540,188.02,0.000378,31]
[356466252,1742494594588,188.02,0.000378,31]
[356466255,1742494594643,188.02,0.000378,31]
[356466258,1742494594706,188.02,0.000378,31]
[356466259,1742494594778,188.02,0.000378,31]
[356466260,1742494594830,188.02,0.000378,31]
[356466261,1742494594892,188.02,0.000378,31]
[356466262,1742494594945,188.02,0.000378,31]
[356466263,1742494595016,188.02,0.000378,31]
[356466264,1742494595078,188.02,0.000378,31]
[356466265,1742494595134,188.02,0.000378,31]
[356466266,1742494595193,188.02,0.000378,31]
[356466267,1742494595257,188.02,0.000378,31]
[356466268,1742494595324,188.02,0.000378,31]
[356466269,1742494595377,188.02,0.000378,31]
[356466270,1742494595435,188.02,0.000378,31]
[356466291,1742494658953,-188.02,0.000421,31]
[356466292,1742494658982,-188.02,0.000421,31]
[356466293,1742494659012,-188.02,0.000421,31]
[356466294,1742494659043,-188.02,0.000421,31]
[356466295,1742494659071,-188.02,0.000421,31]
[356466296,1742494659100,-188.02,0.000421,31]
[356466297,1742494659130,-188.02,0.000421,31]
[356466298,1742494659158,-188.02,0.000421,31]
[356466299,1742494659185,-188.02,0.000421,31]
[356466300,1742494659212,-188.02,0.000421,31]
[356466301,1742494659241,-188.02,0.000421,31]
[356466302,1742494659438,-188.02,0.000421,31]
[356466303,1742494659469,-188.02,0.000421,31]
[356466304,1742494659497,-188.02,0.000421,31]
[356466305,1742494659524,-188.02,0.000421,31]
[356466306,1742494659550,-188.02,0.000421,31]
[356466307,1742494659575,-188.02,0.000421,31]
[356466308,1742494659602,-188.02,0.000421,31]
[356466309,1742494659630,-188.02,0.000421,31]
[356466310,1742494659658,-188.02,0.000421,31]
[356466311,1742494659686,-188.02,0.000421,31]
[356466312,1742494659713,-188.02,0.000421,31]
[356466313,1742494659740,-188.02,0.000421,31]
[356466314,1742494659767,-188.02,0.000421,31]
[356466315,1742494659794,-188.02,0.000464,42]
[356466316,1742494659821,-188.02,0.000464,42]
[356466317,1742494659848,-188.02,0.000464,42]
[356466318,1742494659876,-188.02,0.000464,42]
[356466319,1742494659904,-188.02,0.000464,42]
[356466320,1742494659935,-188.02,0.000464,42]
[356466321,1742494659964,-188.02,0.000464,42]
[356466322,1742494659993,-188.02,0.000464,42]
[356466323,1742494660020,-188.02,0.000464,42]
[356466324,1742494660048,-188.02,0.000464,42]
[356466325,1742494660075,-188.02,0.000464,42]
[356466326,1742494660102,-188.02,0.000464,42]
[356466327,1742494660130,-188.02,0.000464,42]
[356466328,1742494660157,-188.02,0.000464,42]
[356466329,1742494660186,-188.02,0.000464,42]
[356466330,1742494660213,-188.02,0.000464,42]
[356466331,1742494660242,-188.02,0.000464,42]